Cogmind - Beta 11 @@@ ROGUE MODE // 2022.03.25 @ 18:46:27 Player: ForgettableHero Result: Destroyed by as-05427 with Assembled Heavy Rifle Performance ------------- Evolutions (0) 0 Regions Visited (4) 800 Robots Destroyed (41) 205 Value Destroyed (557) 557 Prototype IDs (3) 60 Alien Tech Used (0) 0 Bonus (300) 300 TOTAL SCORE: 1922 Bonus ------- Aligned with FarCom 300 Cogmind --------- Core Integrity 0/250 Matter 231/300 Energy 123/125 System Corruption 1% Temperature Cool (1) Movement Treading (160) Location -9/Mines Parts ------- > --- POWER (1) -------- Light Ion Engine > --- PROPULSION (2) --- Light Treads > --- UTILITY (2) ------ Medium Storage Unit Trap Reconfigurator > --- WEAPON (2) ------- Minigun Grenade Launcher > --- INVENTORY (10) --- Light Ion Engine ECM Suite Utility Shielding Weapon Shielding Light Armor Plating EM Pulse Cannon Heavy Particle Cannon Rocket Launcher Mining Laser Peak State ------------ > --- POWER ------------ Light Ion Engine > --- PROPULSION ------- Light Treads > --- UTILITY ---------- Medium Storage Unit Trap Reconfigurator > --- WEAPON ----------- Minigun Grenade Launcher > --- INVENTORY -------- ECM Suite Utility Shielding Weapon Shielding Light Armor Plating EM Pulse Cannon Heavy Particle Cannon Rocket Launcher Mining Laser [Rating: 17] Favorites ----------- Power Ion Engine Engine Ion Engine Propulsion Light Treads Treads Light Treads Utility Medium Storage Unit Device Trap Reconfigurator Storage Medium Storage Unit Protection Weapon Shielding Weapon Grenade Launcher Energy Gun Medium Laser Ballistic Gun Minigun Ballistic Cannon Light Cannon Launcher Grenade Launcher Special Weapon Mining Laser Build | -11 -10 -10 -10 -9 ------- Run | Scr Mat Min Exi Min Slots Evolved . | . . . . . Power . | . . . . . Propulsion . | . . . . . Utility . | . . . . . Weapon . | . . . . . Parts Attached 33 | 11 7 6 2 7 Power 4 | 1 . 1 . 2 Engine 4 | 1 . 1 . 2 Core . | . . . . . Reactor . | . . . . . Propulsion 4 | 2 1 1 . . Treads 4 | 2 1 1 . . Leg . | . . . . . Wheel . | . . . . . Hover . | . . . . . Flight . | . . . . . Utility 9 | 2 4 1 2 . Device 3 | 1 . 1 1 . Storage 5 | 1 3 . 1 . Processor . | . . . . . Hackware . | . . . . . Protection 1 | . 1 . . . Artifact . | . . . . . Weapon 16 | 6 2 3 . 5 Energy Gun 3 | 2 1 . . . Energy Cannon . | . . . . . Ballistic Gun 5 | 2 . . . 3 Ballistic Cannon 1 | . 1 . . . Launcher 5 | . . 3 . 2 Special Weapon 2 | 2 . . . . Impact Weapon . | . . . . . Slashing Weapon . | . . . . . Piercing Weapon . | . . . . . Special Melee Weapon . | . . . . . Unidentified Prototypes 1 | . . . 1 . Parts Lost 5 | . . 3 . 2 Power 2 | . . . . 2 Propulsion 2 | . . 2 . . Utility 1 | . . 1 . . Weapon . | . . . . . Highest Loss Streak 1 | . . 1 . 1 To Critical Strikes . | . . . . . Average Slot Usage (%) 77 | . 100 73 61 82 Engine 13 | . 14 14 14 12 Treads 18 | . 28 16 14 14 Device 3 | . 1 . 4 14 Storage 14 | . 14 14 14 14 Protection 6 | . 12 10 . . Energy Gun 4 | . 14 2 . . Ballistic Gun 2 | . 2 . . 13 Ballistic Cannon 3 | . 11 3 . . Launcher 9 | . . 11 14 13 Naked Turns . | . . . . . Heaviest Build 23 | 14 21 23 19 20 Greatest Support 40 | 40 40 40 20 20 Greatest Overweight (x) 1 | 1 . 1 . . Average Overweight (x) . | . . . . . Largest Inventory Capacity 20 | 8 20 10 10 10 Average Capacity 9 | 7 9 10 10 10 Most Carried 10 | 8 10 10 10 10 Average Carried 8 | 6 8 9 9 8 Final Capacity 10 | 8 10 10 10 10 Final Carried 10 | 7 10 9 9 9 Class Distribution -------------------- 100% | Mutant Dominant Class ---------------- Mutant | -10/Materials Mutant | -10/Mines Mutant | -10/Exiles Mutant | -9/Mines Resources | -11 -10 -10 -10 -9 ----------- Run | Scr Mat Min Exi Min Matter Collected 956 | 321 144 162 . 329 Remotely . | . . . . . Salvage Created 996 | 202 282 202 . 310 Parts 69 | 14 10 18 . 27 Haulers Intercepted 2 | . 2 . . . Recyclers Shooed 1 | . . . . 1 Parts Field Recycled . | . . . . . Retrieved Matter . | . . . . . Parts Self-Destructed . | . . . . . Prevented . | . . . . . Kills | -11 -10 -10 -10 -9 ------- Run | Scr Mat Min Exi Min Combat Hostiles Destroyed 20 | . 6 7 . 7 Guns 5 | . 3 2 . . Cannons 5 | . 3 2 . . AOE 10 | . . 3 . 7 Classes Destroyed 9 | 3 4 2 . . Worker 4 | 3 . . . 1 Builder 5 | . . 4 . 1 Tunneler 4 | 2 . 1 . 1 Hauler 2 | . 2 . . . Recycler 5 | 1 . 1 . 3 Watcher 1 | . 1 . . . Swarmer 12 | . 2 3 . 7 Grunt 6 | . 4 2 . . Sentry 2 | . . 2 . . Best Kill Streak 4 | 3 2 3 . 4 Combat Bots Only 4 | . 2 2 . 4 Max Kills in Single Turn 4 | 1 1 2 . 4 Gunslinging . | . . . . . Exploded 4 | . . 1 . 4 Melee . | . . . . . Uniques/NPCs Destroyed . | . . . . . Combat | -11 -10 -10 -10 -9 -------- Run | Scr Mat Min Exi Min Damage Taken 1174 | . 235 726 . 213 Core 260 | . 24 178 . 58 Absorbed by Shields . | . . . . . Redirected to Shielding 39 | . 6 33 . . Regen/Repaired (Parts) 109 | . 109 . . . Core Remaining (%) 100 | 100 . . . . Volleys Fired 136 | 32 28 46 . 30 Largest 2 | 2 2 2 . 1 Hottest 200 | 200 85 85 . 30 Shots Fired 216 | 55 56 75 . 30 Gun 114 | 22 40 27 . 25 Cannon 45 | . 16 29 . . Launcher 24 | . . 19 . 5 Special 33 | 33 . . . . Kinetic 93 | 11 28 29 . 25 Thermal 99 | 44 28 27 . . Explosive 24 | . . 19 . 5 Electromagnetic . | . . . . . Robot Hit Streak 12 | 5 10 10 . 12 Robot Miss Streak 3 | 2 3 3 . 1 Penetration Max . | . . . . . Secondary Targets 1 | . 1 . . . Max Gunslinging Chain 1 | . 1 . . . Shots Hit Robots 103 | 12 37 33 . 21 Core Hits 54 | 8 15 19 . 12 Critical Kills . | . . . . . Critical Parts Destroyed . | . . . . . Critical Strikes 3 | 1 1 1 . . Burn 2 | 1 . 1 . . Blast 1 | . 1 . . . Melee Attacks . | . . . . . Impact . | . . . . . Slashing . | . . . . . Piercing . | . . . . . Sneak Attacks . | . . . . . Combat Hostiles . | . . . . . Follow-up Attacks . | . . . . . Damage Inflicted 2283 | 138 469 982 . 694 Guns 929 | 138 273 166 . 352 Cannons 399 | . 191 208 . . Explosions 924 | . . 582 . 342 Melee . | . . . . . Ramming 31 | . 5 26 . . Kinetic 861 | 44 257 208 . 352 Thermal 467 | 94 207 166 . . Explosive 924 | . . 582 . 342 Electromagnetic . | . . . . . Impact . | . . . . . Slashing . | . . . . . Piercing . | . . . . . Highest Corruption 1 | . . . . 1 Average Corruption 1 | . . . . 1 Corruption Purged . | . . . . . Corruption Blocked . | . . . . . Effects 3 | . . . . 3 Matter Fused 1 | . . . . 1 Data Loss (major) 1 | . . . . 1 Alerts 1 | . . . . 1 Overload Shots . | . . . . . Overflow Damage 125 | . . 102 . 23 Projectiles . | . . . . . Explosions 125 | . . 102 . 23 Melee . | . . . . . Knockbacks 5 | . 2 3 . . Impact 1 | . . 1 . . Kinetic 4 | . 2 2 . . Secondary . | . . . . . Self-Inflicted Damage 166 | . . 126 . 40 Shots 9 | . . 7 . 2 Rammed 11 | . 2 9 . . Targets Rammed 12 | . 3 9 . . Kicked . | . . . . . Crushed 1 | . 1 . . . Highest Temperature 341 | 224 123 341 . 10 Average Temperature 75 | 81 46 100 . 5 Received Heat Transfer 321 | . 102 219 . . Effects 3 | 3 . . . . Energy Bleed 1 | 1 . . . . Interference 2 | 2 . . . . Siege Activations . | . . . . . Robots Corrupted . | . . . . . Combat Hostiles . | . . . . . Parts Fried . | . . . . . Impact Corruptions . | . . . . . Robots Melted . | . . . . . Combat Hostiles . | . . . . . Parts Melted 3 | . 1 2 . . Heat Transferred 1399 | 310 534 555 . . Parts Sabotaged . | . . . . . Parts Stolen . | . . . . . Parts Stripped . | . . . . . Power Chain Reactions . | . . . . . Missiles Intercepted . | . . . . . Alert | -11 -10 -10 -10 -9 ------- Run | Scr Mat Min Exi Min Peak Influence 338 | 30 186 338 . 264 Initial 22 | . 19 22 . . Average 113 | 15 75 139 . 145 Maximum Alert Level 1 | . . 1 . 1 Low Security (%) 87 | 100 100 85 . 64 Level 1 12 | . . 14 . 35 Level 2 . | . . . . . Level 3 . | . . . . . Level 4 . | . . . . . Level 5 . | . . . . . High Security . | . . . . . Max Security . | . . . . . Squads Dispatched 4 | . 4 . . . Investigation 3 | . 3 . . . Extermination . | . . . . . Reinforcement 1 | . 1 . . . Assault . | . . . . . Garrison . | . . . . . Intercept . | . . . . . Searches Triggered . | . . . . . Construction Impeded . | . . . . . Haulers Reinforced . | . . . . . Active Scanning Responses . | . . . . . Cargo Convoy Interrupts . | . . . . . Stealth | -11 -10 -10 -10 -9 --------- Run | Scr Mat Min Exi Min Distress Signals . | . . . . . Communications Jammed . | . . . . . Distress Signals . | . . . . . Times Spotted 36 | . 16 8 . 12 Peak Tracking Total 6 | . 3 3 . 6 Tactical Retreats 2 | . 1 1 . . Traps | -11 -10 -10 -10 -9 ------- Run | Scr Mat Min Exi Min Traps Triggered 1 | . 1 . . . Indirectly . | . . . . . Trap Hack Attempts . | . . . . . Triggered . | . . . . . Disarmed . | . . . . . Reprogrammed . | . . . . . Reused . | . . . . . Traps Extracted . | . . . . . Installed . | . . . . . Triggered . | . . . . . Machines | -11 -10 -10 -10 -9 ---------- Run | Scr Mat Min Exi Min Machines Disabled 1 | . . 1 . . Max in Single Turn 1 | . . 1 . . Machines Sabotaged . | . . . . . Garrisons Compromised . | . . . . . Overloaded Fab Kills . | . . . . . Hacking | -11 -10 -10 -10 -9 --------- Run | Scr Mat Min Exi Min Machines Accessed 16 | . 9 2 4 1 Terminals 8 | . 6 1 . 1 Fabricators . | . . . . . Repair Stations 1 | . 1 . . . Recycling Units 2 | . 2 . . . Scanalyzers . | . . . . . Garrison Access . | . . . . . Total Hacks 85 | . 27 3 49 6 Successful 76 | . 22 3 49 2 Failed 9 | . 5 . . 4 Catastrophic 2 | . 1 . . 1 Database Lockouts . | . . . . . Manual 1 | . . . 1 . Terminals 25 | . 17 2 . 6 Fabricators . | . . . . . Repair Stations 6 | . 6 . . . Recycling Units 4 | . 4 . . . Scanalyzers . | . . . . . Garrison Access . | . . . . . Terminal Hacks 67 | . 13 3 49 2 Record 55 | . 3 2 49 1 Robot Analysis 2 | . 2 . . . Prototype ID Bank 1 | . 1 . . . Open Door 1 | . . 1 . . Branch Access Points 1 | . 1 . . . Emergency Access Points 1 | . 1 . . . Repair Station Index 1 | . 1 . . . Locate Traps 1 | . 1 . . . Reinforcement Status 1 | . 1 . . . Registered Components 1 | . 1 . . . Zone Layout 2 | . 1 . . 1 Fabricator Hacks . | . . . . . Repair Station Hacks 5 | . 5 . . . Scan Component 3 | . 3 . . . Repair 2 | . 2 . . . Recycling Unit Hacks 4 | . 4 . . . Report Inventory 2 | . 2 . . . Retrieve Matter 1 | . 1 . . . Retrieve Components 1 | . 1 . . . Scanalyzer . | . . . . . Garrison Access Hacks . | . . . . . Unauthorized Hacks . | . . . . . Terminals . | . . . . . Fabricators . | . . . . . Repair Stations . | . . . . . Recycling Units . | . . . . . Scanalyzers . | . . . . . Garrison Access . | . . . . . Data Cores Recovered . | . . . . . Used . | . . . . . Hacking Detections 8 | . 7 . . 1 Full Trace Events 1 | . . . . 1 Feedback Events 1 | . . . . 1 Corruption 1 | . . . . 1 Feedback Blocked . | . . . . . Robot Schematics Acquired . | . . . . . Robots Built . | . . . . . Authchips . | . . . . . Time . | . . . . . Total Robot Build Rating . | . . . . . Part Schematics Acquired . | . . . . . Parts Built . | . . . . . Authchips . | . . . . . Time . | . . . . . Total Part Build Rating . | . . . . . Parts Repaired 2 | . 2 . . . Time 52 | . 52 . . . Parts Recycled . | . . . . . Recycled Matter . | . . . . . Retrieved Matter 216 | . 216 . . . Retrieved Components 7 | . 7 . . . Parts Scanalyzed . | . . . . . Part Schematics Acquired . | . . . . . Parts Damaged . | . . . . . Bothacking | -11 -10 -10 -10 -9 ------------ Run | Scr Mat Min Exi Min Used RIF Installer . | . . . . . Robots Hacked . | . . . . . Non-combat . | . . . . . Combat . | . . . . . Robot Hacks Applied . | . . . . . Relay Couplers Released . | . . . . . Fabnet Peak Effective % . | . . . . . Robots Rewired . | . . . . . Allies Hacked . | . . . . . Hacks Repelled . | . . . . . Allies | -11 -10 -10 -10 -9 -------- Run | Scr Mat Min Exi Min Total Allies . | . . . . . Largest Group . | . . . . . Highest-Rated Group . | . . . . . Highest-Rated Ally . | . . . . . Total Orders . | . . . . . Ally Attacks . | . . . . . Total Damage . | . . . . . Kills . | . . . . . Allies Corrupted . | . . . . . Allies Melted . | . . . . . Intel | -11 -10 -10 -10 -9 ------- Run | Scr Mat Min Exi Min Robot Analysis Total 2 | . 2 . . . Derelict Logs Recovered 3 | . . 1 . 2 Drone Launches . | . . . . . Drone Recoveries . | . . . . . Exploration | -11 -10 -10 -10 -9 ------------- Run | Scr Mat Min Exi Min Turns Passed 5728 | 343 1138 2087 1474 686 Spaces Moved 3041 | 77 550 1148 918 348 Core 24 | 24 . . . . Treads 3017 | 53 550 1148 918 348 Legs . | . . . . . Wheels . | . . . . . Hover . | . . . . . Flight . | . . . . . Fastest Speed 50 | 50 160 160 160 160 Average Speed 159 | 140 160 160 160 160 Slowest Speed 240 | 160 160 240 160 160 Overloaded Moves . | . . . . . Propulsion Burnouts . | . . . . . Robots Hopped . | . . . . . Cave-ins Triggered . | . . . . . Exploration Rate (%) 71 | 7 92 99 95 65 Regions Visited 4 Branch Regions 3 Pre-discovered Areas 4 | . . 1 1 2 Known Exits Taken 1 | . 1 . . . Unknown Exits Taken 3 | 1 . 1 1 . Scrap Searched 1 | . . 1 . . Spaces Dug 17 | 7 . 10 . . Terrain Destroyed 192 | 9 . 142 . 41 Melee . | . . . . . Projectile 9 | 9 . . . . AOE 183 | . . 142 . 41 Terrain Rammed . | . . . . . Walls Destroyed . | . . . . . Machines Disabled . | . . . . . Actions | -11 -10 -10 -10 -9 --------- Run | Scr Mat Min Exi Min Total 3633 | 191 757 1310 924 451 Wait 341 | 58 137 83 . 63 Move 3037 | 76 549 1147 917 348 Hop . | . . . . . Pick Up 47 | 14 19 8 3 3 Fast Attach . | . . . . . Attach 12 | 7 . 1 1 3 Detach 1 | . . 1 . . Swap 21 | 4 7 5 1 4 Drop 25 | . 14 9 2 . Fire 136 | 32 28 46 . 30 Melee . | . . . . . Ram . | . . . . . Kick . | . . . . . Crush 12 | . 3 9 . . Escape Stasis . | . . . . . Rewire 1 | . . 1 . . Trap . | . . . . . Miscellaneous . | . . . . . Route ------- -11/Scrapyard -10/Materials (discovered 4 exits: [*Mat x2] / *Min x2) -10/Mines (discovered 3 exits: [*Mat x2] / *Exi) -10/Exiles (discovered 2 exits: *Min x2) -9/Mines (discovered 1 exit: [*Mat]) History --------- Turn | Location | Event 16 | -11/Scrapyard | Discovered new exit (range 14) 344 | -11/Scrapyard | Entered Materials 345 | -10/Materials | Build established: Mutant 352 | -10/Materials | Identified exit to Mines 683 | -10/Materials | Discovered new exit (range 5) 1003 | -10/Materials | Repaired Grenade Launcher 1030 | -10/Materials | Repaired Lgt. Treads 1301 | -10/Materials | Discovered new exit (range 18) 1482 | -10/Materials | Entered Mines 1557 | -10/Mines | Received a Rocket Launcher from a helpful Derelict 1890 | -10/Mines | Discovered new exit (range 5) 2037 | -10/Mines | Discovered new exit (range 11) 2271 | -10/Mines | Learned location of Zion (-7) 2344 | -10/Mines | Met a Derelict who couldn't figure out how to use a Trap Extractor 2345 | -10/Mines | Core integrity fell below 50% 3014 | -10/Mines | Core integrity fell below 20% 3561 | -10/Mines | Deemed a non-threat by the Exiles lab entrance 3561 | -10/Mines | Discovered new exit (range 5) 3569 | -10/Mines | Entered Exiles 3617 | -10/Exiles | Met 8R-AWN 3648 | -10/Exiles | Met EX-HEX 3790 | -10/Exiles | Discovered new exit (range 14) 3950 | -10/Exiles | Met EX-DEC 4034 | -10/Exiles | Visited The Gauntlet 4411 | -10/Exiles | Met EX-BIN 4453 | -10/Exiles | Aligned with FarCom system 4454 | -10/Exiles | Given EX-Vault access code 4521 | -10/Exiles | Opened EX-Vault 4529 | -10/Exiles | Found Prototype Device 4530 | -10/Exiles | Identified Trap Reconfigurator 4565 | -10/Exiles | Warned to stay clear of 0b10 Research branches 4710 | -10/Exiles | Discovered new exit (range 10) 5043 | -10/Exiles | Left Exiles lab with Trap Reconfigurator 5043 | -10/Exiles | Entered Mines 5084 | -9/Mines | Met a Derelict bent on vengeance 5146 | -9/Mines | Learned location of Storage (-7) 5328 | -9/Mines | Discovered new exit (range 11) 5707 | -9/Mines | Assembled infested the area 5712 | -9/Mines | Assisted by a Guerilla fighting off Assembled 5729 | -9/Mines | Destroyed by as-05427 with Assembled Heavy Rifle Last Messages --------------- Feedback: System corruption (+1%). 05438_ System corrupted: Substantial component data lost. 05484_ R-06 Scavenger destroyed. 05490_ Acquired 66 matter. 05509_ R-06 Scavenger destroyed. 05511_ Acquired 83 matter. 05559_ System corrupted: Matter fused (-8). 05584_ System corrupted: IFF burst signal emitted. 05586_ Acquired derelict log, extracted data. Data stored: Storage entrances (x1). 05648_ RO-LGC(g): "WHERE ARE YOU, UNAWARE TRASH?! VENGEANCE UPON YOU!" 05655_ RO-LGC(g): "TASTE MY VENGEANCE!" 05707_ ALERT: Infestation in the mines, dispatching Demolisher response squad. 05712_ A derelict emerges from the shadows: "You need to get out of here! I've been tracking a group of Assembled to figure out where they're coming from, and they're closing on this area, come on!" 05720_ D0-40C(h): "I'll hold them off! Go on ahead or try to find another way!" [Achievement: This Is Interesting...] Map ----- +----------------------------------------------------+ | ????????# ??## #??##### #? | | ???????## ### #### ## #? | | ??????## ## ### ##? | | ??????# ### ### #??###?? | | ??????# # # ## #?## ##?# #??????? | | ??????## ??# ## ### #??### #??# #??????? | | ???????##????# #####?# #????# ##??# ###????? | | ?????????????# #?????# #????# ##???# #????? | | ?????????????# #?????# #????# #????#### #????? | | ????####?????# #?????# ##???# #??????## ####?? | | ???## ##????# #?????# ##### #??????# #?? | | ???# *###### #?????# #??????# #?? | | ???# =[! !!= #?????# #######??????# """ #?? | | ???# !#######?????# ##????????????# """ #?? | | ???# ##??????????# ##?????????????# """ #?? | | ???# ##???#????## ##????###??????# #?? | | ??## ### ##??## ##### ##?????#######?? | | ?## #??# ## #?????????????? | | ?# #?## #?????????????? | | ## #?# ##?????????????? | | ! ## #?# ##??????????????? | | = ! ##?# ##?# ##??????????????? | | ##==! ##???####??## ###????????????? | | # ##???????????## ##???????????? | | ##?????????????## #???????????? | | ##???????????????## @ ha #???????????? | | ###?????????????????## a a##??????????? | | ##????????????????????## ##?????????? | | ##??????????????????????## ##????????? | | #????????????????????????## a ####?????? | | #?????????????????????????## #?????? | | #??????????????????????????## #????? | | #???????????????????????????## ## #???? | | #????????????????????????????# #?# #?? | | ######???????????????????????# #??# #"# ??? | | #???????????????????????# #????##????????? | | """ #???????????????????????#d #??????????????? | | """ #???????????????????????#d #??????????????? | | """ #???????????????????????# #??????????????? | | #???????????????????????# #??????????????? | | """ #???????????????????????# #??????????????? | | """ #??????????????????????? #??????????????? | | """ #???????????????????????####??????????????? | | #?????????????????????????????????????????? | | ######?????????????????????????????????????????? | | ???????????????????????????????????????????????? | | ###????????????????????????????????????????????? | | #????????????????????????????????????????????? | | #????????????????????????????????????????????? | | #????????????????????????????????????????????? | +----------------------------------------------------+ Best States ------------- Heat Dissipation 25 Energy Generation 10 Energy Capacity 250 Matter Stores 300 Matter Capacity 300 Sight Range 16 Terrain Scan Range 16 Terrain Scan Density 10 Weapon Shielding 33 Evasion (%) 40 Recoil Reduction 2 Item Schematics ----------------- None Robot Schematics ------------------ None Fabricated ------------ Nothing Alien Tech Used ----------------- None Achievements -------------- This Is Interesting... Challenges ------------ None Game ------ Seed AdvancedComponentTerrabomb Manual? 0 Play Time 00:52:43 Cumulative 45.2 hours Start 2022.03.25 @ 17:50:32 End 2022.03.25 @ 18:46:27 Sessions 1 Manual Loads 0 Difficulty Rogue Special Mode None Game No. 6 Rogue 5 Adventurer 0 Explorer 1 Win Type - Total 1 Types 1/0/0/0/0/0/0/0/0 Lore% 29 Gallery% 26 Achievement% 33 Wizard Run 0 Options --------- ASCII 0 Keyboard 0 Movement Numpad Keybinds 0 Fullscreen 2 Font 18/TerminusBold Map View 76x50 Tactical HUD 1 Map Filters NONE Filters NONE Steam 1 RUN: 6750e265-42de-4808-bc5a-d40fe351d36f